bitfinex-derivatives/quotes_SOLF0:USTF0_20250130
["timestamp","ask_amount","ask_price","bid_price","bid_amount"]
[1738203494155,4.2624,234.62,234.55,4.2636]
[1738203494156,18.80470931,234.62,234.44,18.80470931]
[1738203494951,4.2632,234.58,234.44,18.80470931]
[1738203495149,18.80470931,234.62,234.51,0.03152834]
[1738203495345,0.03035105,234.55,234.51,0.03152834]
[1738203496154,4.29405105,234.55,234.51,0.03152834]
[1738203496852,4.2639,234.54,234.51,0.03152834]
[1738203497153,0.03035105,234.55,234.51,0.03152834]
[1738203498759,0.03035105,234.55,234.54,4.2638]
[1738203499055,0.03035105,234.55,234.51,0.03152834]
[1738203499761,4.2639,234.54,234.51,0.03152834]
[1738203500162,0.03035105,234.55,234.51,0.03152834]
[1738203505569,0.03035105,234.55,234.51,4.29592834]
[1738203505768,0.03035105,234.55,234.51,0.03152834]
[1738203506468,0.03035105,234.55,234.54,4.2638]
[1738203507568,0.03035105,234.55,234.51,2.834e-05]
[1738203507773,4.2642,234.52,234.51,2.834e-05]
[1738203508365,18.80470931,234.5,234.36,147.63484096]
[1738203509268,21.59990931,234.54,234.36,147.63484096]
[1738203509470,0.0299412,234.45,234.41,0.03089611]
[1738203509670,21.59990931,234.54,234.41,0.03089611]
[1738203509865,0.02791026,234.45,234.41,0.03089611]
[1738203510062,21.59990931,234.54,234.41,4.29689611]
[1738203510266,0.03170473,234.45,234.41,0.03089611]
[1738203510470,21.68470931,234.46,234.28,18.80470931]
[1738203510668,1.4096,234.45,234.28,18.80470931]
[1738203511372,1.4096,234.45,234.32,18.80470931]
[1738203511774,0.03034406,234.41,234.36,0.03129487]
[1738203512267,0.03034406,234.41,234.38,4.2667]
[1738203513176,0.03034406,234.41,234.36,0.03129487]
[1738203513378,0.03034406,234.41,234.39,4.2665]
[1738203515477,1.4654,234.53,234.47,4.265]
[1738203515674,1.4654,234.53,234.38,1.4791]
[1738203515874,2.88,234.56,234.52,4.2642]
[1738203516275,2.88,234.56,234.41,18.80470931]
[1738203516578,2.90989327,234.56,234.52,0.0290432]
[1738203516779,2.88,234.56,234.41,18.80470931]
[1738203516979,2.90740574,234.56,234.52,0.02942132]
[1738203517173,18.80470931,234.64,234.41,18.80470931]
[1738203517375,18.80470931,234.64,234.39,2.8793]
[1738203517376,0.03190715,234.56,234.52,0.03022215]
[1738203517576,2.7889,234.66,234.52,0.03022215]
[1738203517873,0.03041018,234.56,234.53,4.264]
[1738203518075,4.2621,234.64,234.45,18.80470931]
[1738203518277,0.0289961,234.57,234.52,0.02959612]
[1738203521080,0.0289961,234.57,234.52,4.29359612]
[1738203521280,0.0289961,234.57,234.52,0.02959612]
[1738203521481,4.2635,234.56,234.52,0.02959612]
[1738203522181,0.0289961,234.57,234.52,0.02959612]
[1738203522582,4.2635,234.56,234.52,0.02959612]
[1738203522883,0.0289961,234.57,234.52,0.02959612]
[1738203523182,18.83370541,234.57,234.52,0.02959612]
[1738203523382,4.2639,234.54,234.52,0.02959612]
[1738203524585,4.264,234.53,234.52,0.02959612]
[1738203525280,2.7776,234.55,234.52,0.02959612]
[1738203525484,4.2923961,234.57,234.52,0.02959612]
[1738203525686,0.0289961,234.57,234.52,0.02959612]
[1738203525985,18.83370541,234.57,234.52,0.02959612]
[1738203526282,1.3614,234.56,234.52,0.02959612]
[1738203526985,4.264,234.53,234.52,0.02959612]
[1738203528385,4.2637,234.55,234.52,0.02959612]
[1738203528585,1.3614,234.56,234.52,0.02959612]
[1738203528784,2.8103,234.55,234.52,0.02959612]
[1738203529589,4.264,234.53,234.52,0.02959612]
[1738203530285,7.0741,234.55,234.52,0.02959612]
[1738203530584,2.8103,234.55,234.52,0.02959612]
[1738203530886,0.0289961,234.57,234.52,0.02959612]
[1738203532885,0.0289961,234.57,234.53,4.2639]
[1738203533086,0.0289961,234.57,234.52,0.02959612]
[1738203533385,0.0289961,234.57,234.52,4.29359612]
[1738203533691,18.83370541,234.57,234.52,0.02959612]
[1738203534786,4.2923961,234.57,234.52,0.02959612]
[1738203534986,0.0289961,234.57,234.52,0.02959612]
[1738203536092,18.83370541,234.57,234.52,0.02959612]
[1738203536288,0.0289961,234.57,234.52,4.29379612]
[1738203536989,4.2922961,234.57,234.52,0.02959612]
[1738203537189,18.83370541,234.57,234.52,0.02959612]
[1738203537784,4.264,234.53,234.52,0.02959612]
[1738203538889,21.3111,234.73,234.52,0.02959612]
[1738203538890,23.06570931,234.7,234.52,0.02959612]
[1738203539088,12.67776685,234.75,234.55,18.80470931]
[1738203539491,18.80470931,234.72,234.55,18.80470931]
[1738203539801,18.80470931,234.72,234.6,4.2627]
[1738203540103,0.0296913,234.68,234.64,0.02821669]
[1738203542707,0.0296913,234.68,234.66,4.2616]
[1738203543808,0.0296913,234.68,234.64,0.02821669]
[1738203544006,0.0296913,234.68,234.64,4.29011669]
[1738203544903,0.0296913,234.68,234.64,0.02821669]
[1738203546204,0.0296913,234.68,234.66,4.2616]
[1738203547712,0.0296913,234.68,234.64,0.02821669]
[1738203547912,0.0296913,234.68,234.64,4.29011669]
[1738203548111,0.0296913,234.68,234.64,0.02821669]
[1738203550204,0.0296913,234.68,234.66,4.2616]
[1738203550708,2.88,234.81,234.64,0.02821669]
[1738203550917,39.68187335,234.93,234.75,18.80470931]
[1738203551106,4.2202,234.92,234.75,18.80470931]
[1738203551511,4.2202,234.92,234.8,4.2591]
[1738203552015,4.2581,234.86,234.84,0.02987633]
[1738203552413,4.28990702,234.88,234.84,0.02987633]
[1738203553513,4.2579,234.87,234.84,0.02987633]
[1738203554714,0.03220702,234.88,234.84,0.02987633]
[1738203554916,4.2581,234.86,234.84,0.02987633]
[1738203558115,0.03220702,234.88,234.84,0.02987633]
[1738203558513,4.2582,234.85,234.84,0.02987633]
[1738203559215,4.2579,234.87,234.84,0.02987633]
[1738203559416,0.03220702,234.88,234.84,0.02987633]
[1738203559814,4.2582,234.85,234.84,0.02987633]
[1738203562916,0.03220702,234.88,234.84,0.02987633]
[1738203564320,4.2582,234.85,234.84,0.02987633]
[1738203565221,4.2582,234.85,234.84,7.633e-05]
[1738203566221,18.80470931,234.87,234.68,2.7531]
[1738203567018,4.259,234.81,234.73,4.2604]
[1738203567520,0.02706749,234.79,234.75,0.02977687]
[1738203567826,4.2595,234.78,234.75,0.02977687]
[1738203568119,0.02706749,234.79,234.75,0.02977687]
[1738203568319,4.2598,234.77,234.75,0.02977687]
[1738203573026,0.02706749,234.79,234.75,4.28967687]
[1738203573925,0.02706749,234.79,234.75,0.02977687]
[1738203574124,0.02706749,234.79,234.78,4.2595]
[1738203575125,0.02706749,234.79,234.76,4.2598]
[1738203577125,0.02706749,234.79,234.75,0.02977687]
[1738203577532,4.2598,234.76,234.75,0.02977687]
[1738203580733,18.8317768,234.79,234.61,1.4502]
[1738203580934,18.80470931,234.79,234.61,1.4502]
[1738203581534,18.80470931,234.75,234.6,147.63484096]
[1738203581733,18.80470931,234.71,234.6,147.63484096]
[1738203581933,2.80017839,234.7,234.65,0.02957505]
[1738203582128,18.80470931,234.67,234.6,147.63484096]
[1738203582533,4.2624,234.62,234.6,147.63484096]
[1738203582732,5.68017839,234.7,234.6,147.63484096]
[1738203582932,5.6487,234.7,234.52,18.80470931]
[1738203583132,4.2613,234.68,234.59,4.2629]
[1738203583334,0.03209667,234.63,234.59,4.29170319]
[1738203583934,0.03209667,234.63,234.59,0.02880319]
[1738203585939,0.03209667,234.63,234.59,4.29170319]
[1738203586237,0.03209667,234.63,234.59,0.02880319]
[1738203586438,0.03209667,234.63,234.6,4.2627]
[1738203586634,0.03209667,234.63,234.59,0.02880319]
[1738203586835,0.03209667,234.63,234.61,4.2624]
[1738203590046,21.68470931,234.8,234.6,18.80470931]
[1738203590244,21.68470931,234.8,234.61,1.4305]
[1738203590445,18.80470931,234.8,234.61,1.4305]
[1738203590646,21.68470931,234.8,234.66,4.2615]
[1738203590846,21.68470931,234.8,234.61,1.4305]
[1738203591144,0.03230889,234.73,234.68,0.03035455]
[1738203591849,4.2606,234.72,234.68,0.03035455]
[1738203592146,0.03230889,234.73,234.68,0.03035455]
[1738203592545,4.2606,234.72,234.68,0.03035455]
[1738203593646,0.03230889,234.73,234.68,0.03035455]
[1738203595746,0.03230889,234.73,234.68,4.29155455]
[1738203595948,0.03230889,234.73,234.68,0.03035455]
[1738203597146,0.03230889,234.73,234.71,4.2606]
[1738203597647,4.2611,234.69,234.68,0.03035455]
[1738203597952,18.80470931,234.72,234.68,0.03035455]
[1738203599048,4.261,234.7,234.68,0.03035455]
[1738203599253,0.03230889,234.73,234.68,0.03035455]
[1738203599753,4.2607,234.71,234.68,0.03035455]
[1738203600553,0.03230889,234.73,234.68,0.03035455]
[1738203601854,4.2608,234.71,234.68,0.03035455]
[1738203602156,18.80470931,234.72,234.57,2.8575]
[1738203602350,18.80470931,234.68,234.54,1.3466]
[1738203602752,4.262,234.64,234.58,4.2631]
[1738203602947,4.262,234.64,234.54,1.3466]
[1738203603150,18.80470931,234.68,234.54,1.3466]
[1738203603350,0.03276678,234.61,234.57,0.02792637]
[1738203604851,4.2628,234.6,234.57,0.02792637]
[1738203605258,0.03276678,234.61,234.57,0.02792637]
[1738203605754,4.29546678,234.61,234.57,0.02792637]
[1738203606446,0.03276678,234.61,234.57,0.02792637]
[1738203606955,0.03276678,234.61,234.57,4.29112637]
[1738203607153,0.03276678,234.61,234.57,0.02792637]
[1738203607660,0.03276678,234.61,234.59,4.2629]
[1738203607854,1.4595,234.71,234.57,0.02792637]
[1738203607855,1.4595,234.71,234.57,18.83263568]
[1738203608055,2.88,234.75,234.58,1.4013]
[1738203608357,7.1401,234.75,234.69,4.261]
[1738203608558,2.88,234.75,234.61,18.80470931]
[1738203609056,0.02792072,234.7,234.66,0.02700653]
[1738203609254,0.02792072,234.7,234.69,4.261]
[1738203609455,2.7996,234.82,234.66,0.02700653]
[1738203609659,2.7996,234.82,234.72,4.2604]
[1738203610165,4.2599,234.76,234.68,4.2612]
[1738203610358,18.80470931,234.8,234.6,18.80470931]
[1738203610556,18.80470931,234.8,234.61,9.26926589]
[1738203610854,0.02706664,234.72,234.68,0.02847028]
[1738203613158,1.3852,234.86,234.68,18.83317959]
[1738203613358,18.80470931,234.92,234.72,18.80470931]
[1738203613554,18.80470931,234.92,234.8,4.259]
[1738203613857,18.80470931,234.92,234.72,18.80470931]
[1738203614260,0.03087864,234.84,234.8,0.0291803]
[1738203615358,18.80470931,235.0,234.8,18.83388961]
[1738203615556,18.80470931,235.0,234.81,1.3894]
[1738203616063,18.80470931,234.96,234.81,1.3894]
[1738203616259,4.2573,234.91,234.84,4.2583]
[1738203616459,18.80470931,234.96,234.81,1.3894]
[1738203616658,0.02879137,234.91,234.86,0.03063816]
[1738203618564,4.2573,234.9,234.86,0.03063816]
[1738203619166,4.2577,234.88,234.86,0.03063816]
[1738203621161,18.80470931,234.88,234.73,1.4003]
[1738203621359,18.80470931,234.88,234.7,1.3385]
[1738203621562,18.80470931,234.84,234.7,1.3385]
[1738203621760,18.80470931,234.84,234.66,192.0]
[1738203621959,4.2597,234.77,234.66,192.0]
[1738203622368,0.02785424,234.74,234.69,0.02934041]
[1738203622872,0.02785424,234.74,234.72,4.2605]
[1738203623870,0.02785424,234.74,234.69,0.02934041]
[1738203624570,4.2604,234.73,234.69,0.02934041]
[1738203627674,0.02785424,234.74,234.69,0.02934041]
[1738203628475,4.2604,234.73,234.69,0.02934041]
[1738203629374,0.02785424,234.74,234.69,0.02934041]
[1738203630281,4.2604,234.73,234.69,0.02934041]
[1738203630778,4.2609,234.7,234.69,0.02934041]
[1738203632384,0.02785424,234.74,234.69,0.02934041]
[1738203632885,4.2606,234.72,234.69,0.02934041]
[1738203633076,0.02785424,234.74,234.69,0.02934041]
[1738203633684,4.28815424,234.74,234.69,0.02934041]
[1738203636183,0.02785424,234.74,234.69,4.29034041]
[1738203636388,0.02785424,234.74,234.69,0.02934041]
[1738203637185,0.02785424,234.74,234.7,4.2608]
[1738203637381,0.02785424,234.74,234.69,0.02934041]
[1738203637687,18.80470931,234.88,234.73,4.2604]
[1738203637887,4.2582,234.85,234.68,18.80470931]
[1738203638088,18.80470931,234.88,234.68,210.80470931]
[1738203638794,18.80470931,234.84,234.68,192.0]
[1738203639091,0.03275931,234.8,234.76,0.02965534]
[1738203639790,4.29195931,234.8,234.76,0.02965534]
[1738203640691,0.03275931,234.8,234.76,0.02965534]
[1738203640889,18.83746862,234.8,234.76,0.02965534]
[1738203641087,0.03275931,234.8,234.76,0.02965534]
[1738203641284,0.03275931,234.8,234.76,4.28945534]
[1738203641493,0.03275931,234.8,234.76,0.02965534]
[1738203644095,0.03275931,234.8,234.78,4.2594]
[1738203645095,18.80470931,234.96,234.84,4.2583]
[1738203645395,18.80470931,235.0,234.8,18.80470931]
[1738203646099,18.80470931,235.0,234.81,0.776385]
[1738203646298,0.03017216,234.92,234.88,0.03207059]
[1738203646692,0.03017216,234.92,234.9,4.2572]
[1738203647191,18.80470931,235.08,234.88,18.8367799]
[1738203647397,18.80470931,235.0,234.84,2.88]
[1738203647993,18.80470931,235.0,234.81,193.394]
[1738203648297,0.03126232,234.93,234.88,0.03278413]
[1738203648996,0.03126232,234.93,234.89,4.2574]
[1738203649197,0.03126232,234.93,234.88,0.03278413]
[1738203650397,0.03126232,234.93,234.91,4.2571]
[1738203652599,0.03126232,234.93,234.9,4.2572]
[1738203654205,0.03126232,234.93,234.88,4.29028413]
[1738203654401,0.03126232,234.93,234.88,0.03278413]
[1738203655100,0.03126232,234.93,234.88,4.29028413]
[1738203655304,0.03126232,234.93,234.88,0.03278413]
[1738203656607,0.03126232,234.93,234.89,4.2574]
[1738203657309,0.03126232,234.93,234.88,0.03278413]
[1738203657906,4.28806232,234.93,234.88,4.29038413]
[1738203658812,4.28806232,234.93,234.88,0.03278413]
[1738203658813,0.03126232,234.93,234.88,0.03278413]
[1738203659811,4.28816232,234.93,234.88,0.03278413]
[1738203660011,0.03126232,234.93,234.88,0.03278413]
[1738203661613,0.03126232,234.93,234.9,4.2572]
[1738203661813,0.03126232,234.93,234.88,0.03278413]
[1738203662115,0.03126232,234.93,234.92,4.2569]
[1738203662313,0.03126232,234.93,234.88,0.03278413]
[1738203663108,0.03126232,234.93,234.89,4.2573]
[1738203663307,0.03126232,234.93,234.88,0.03278413]
[1738203663709,0.03126232,234.93,234.92,4.2569]
[1738203663912,0.03126232,234.93,234.88,0.03278413]
[1738203664217,0.03126232,234.93,234.91,4.2571]
[1738203664916,0.03126232,234.93,234.92,4.2569]
[1738203665406,11.74167621,235.06,235.0,4.2555]
[1738203665609,11.74167621,235.06,234.91,11.74167621]
[1738203665807,1.4307,235.12,234.94,11.74167621]
[1738203665808,11.74167621,235.09,234.94,11.74167621]
[1738203666505,11.74167621,235.09,234.99,0.03158929]
[1738203666710,0.02698571,235.04,234.99,0.03158929]
[1738203667118,0.02698571,235.04,235.01,4.2552]
[1738203667312,0.02698571,235.04,234.99,0.03158929]
[1738203667712,0.02698571,235.04,235.02,4.2551]
[1738203673322,18.76291028,235.15,235.09,4.2537]
[1738203673625,4.3036,235.17,235.09,4.2537]
[1738203673817,4.2526,235.16,235.09,4.2537]
[1738203674018,18.76291028,235.19,235.09,4.2537]
[1738203674424,4.28260676,235.16,235.12,0.02911696]
[1738203674727,4.28260676,235.16,235.1,4.2536]
[1738203674924,4.28260676,235.16,235.12,0.03126159]
[1738203675620,0.03000676,235.16,235.12,0.03126159]
[1738203676728,4.28280676,235.16,235.12,0.03126159]
[1738203677724,0.03000676,235.16,235.12,0.03126159]
[1738203678225,0.03000676,235.16,235.12,4.28456159]
[1738203678730,4.28260676,235.16,235.12,0.03126159]
[1738203678929,0.03000676,235.16,235.12,0.03126159]
[1738203680034,4.253,235.14,235.12,0.03126159]
[1738203680334,0.03000676,235.16,235.12,0.03126159]
[1738203680729,4.2531,235.13,235.12,0.03126159]
[1738203681628,18.76291028,235.15,235.0,1.3734]
[1738203682034,4.2536,235.11,235.03,4.2549]
[1738203682235,18.76291028,235.15,234.99,2.8107]
[1738203682840,0.03230098,235.09,235.05,0.03224003]
[1738203686136,18.76291028,235.07,234.9,1.4451]
[1738203686333,1.4613,235.06,234.9,1.4451]
[1738203686733,18.76291028,235.03,234.89,8.26437499]
[1738203687238,0.03174703,234.98,234.94,0.03144389]
[1738203687631,4.28774703,234.98,234.94,0.03144389]
[1738203687838,0.03174703,234.98,234.94,0.03144389]
[1738203688036,1.4613,235.06,234.94,0.03144389]
[1738203688037,18.76291028,235.21,234.97,18.76291028]
[1738203688334,4.2526,235.17,235.01,18.76291028]
[1738203688532,4.2526,235.17,235.03,11.72078453]
[1738203688734,4.2528,235.15,235.07,4.2542]
[1738203689336,0.02879027,235.13,235.09,0.0285968]
[1738203689731,0.02879027,235.13,235.1,4.2536]
[1738203689934,0.02879027,235.13,235.09,0.0285968]
[1738203690537,0.02879027,235.13,235.11,4.2535]
[1738203692537,0.02879027,235.13,235.09,0.0285968]
[1738203692740,0.02879027,235.13,235.09,4.2823968]
[1738203693534,0.02879027,235.13,235.1,4.2536]
[1738203695338,0.02879027,235.13,235.09,0.0285968]
[1738203702246,4.2537,235.1,235.09,0.0285968]
[1738203702844,0.02879027,235.13,235.09,0.0285968]
[1738203704049,4.28189027,235.13,235.09,0.0285968]
[1738203704848,4.2537,235.1,235.09,0.0285968]
[1738203706652,4.28199027,235.13,235.09,0.0285968]
[1738203706848,0.02879027,235.13,235.09,0.0285968]
[1738203708047,4.2534,235.12,235.09,0.0285968]
[1738203709251,4.2537,235.1,235.09,0.0285968]
[1738203709748,5.7046,235.12,235.09,0.0285968]
[1738203710454,4.2536,235.11,235.09,0.0285968]
[1738203711750,1.4511,235.12,235.09,0.0285968]
[1738203711953,4.2537,235.1,235.09,0.0285968]
[1738203720663,5.7046,235.12,235.09,0.0285968]
[1738203721460,4.2535,235.12,235.09,0.0285968]
[1738203722767,0.02879027,235.13,235.09,4.2822968]
[1738203723567,0.02879027,235.13,235.09,0.0285968]
[1738203723762,4.28189027,235.13,235.09,0.0285968]
[1738203724163,4.2537,235.1,235.09,0.0285968]
[1738203725170,4.2545,235.06,234.95,159.35822816]
[1738203725469,11.7233872,235.13,234.95,159.35822816]
[1738203725665,11.7233872,235.13,234.95,11.7233872]
[1738203725970,4.2544,235.07,235.0,4.2553]
[1738203726369,0.02828167,235.06,235.01,0.02810596]
[1738203726669,4.28268167,235.06,235.01,0.02810596]
[1738203728071,0.02828167,235.06,235.01,11.75149316]
[1738203728273,0.02828167,235.06,235.04,11.7233872]
[1738203728767,0.02828167,235.06,235.05,4.2546]
[1738203729072,4.3239,235.16,235.04,11.7233872]
[1738203729972,4.2529,235.15,235.09,4.2537]
[1738203730174,0.0299146,235.12,235.09,4.2537]
[1738203730967,0.0299146,235.12,235.11,4.2535]
[1738203731971,0.0299146,235.12,235.08,0.031451]
[1738203733673,0.0299146,235.12,235.09,4.2538]
[1738203734579,0.0299146,235.12,235.08,0.031451]
[1738203738687,0.0299146,235.12,235.11,4.2535]
[1738203738985,0.0299146,235.12,235.08,0.031451]
[1738203741685,0.0299146,235.12,235.09,4.2538]
[1738203741888,0.0299146,235.12,235.08,0.031451]
[1738203742586,0.0299146,235.12,235.1,4.2536]
[1738203746387,4.2535,235.11,235.08,0.031451]
[1738203748790,7.53138629,235.12,235.08,0.031451]
[1738203750092,4.2537,235.1,235.08,0.031451]
[1738203750290,7.50147169,235.1,235.08,0.031451]
[1738203751690,4.2537,235.11,235.08,0.031451]
[1738203751993,11.78468629,235.12,235.08,0.031451]
[1738203752987,0.0299146,235.12,235.11,4.2535]
[1738203753590,8.93467169,235.22,235.1,7.50147169]
[1738203753793,13.18627169,235.22,235.16,4.2526]
[1738203754393,7.50147169,235.26,235.18,7.50147169]
[1738203754795,0.03229824,235.24,235.21,4.2516]
[1738203755492,0.03229824,235.24,235.22,4.2514]
[1738203757896,0.03229824,235.24,235.2,0.03182746]
[1738203758090,0.03229824,235.24,235.2,4.28362746]
[1738203760889,0.03229824,235.24,235.2,0.03182746]
[1738203762089,0.03229824,235.24,235.22,4.2514]
[1738203764195,0.03229824,235.24,235.23,4.2513]
[1738203764592,0.03229824,235.24,235.2,0.03182746]
[1738203765094,0.03229824,235.24,235.21,4.2516]
[1738203765292,0.03229824,235.24,235.2,0.03182746]
[1738203766097,0.03229824,235.24,235.22,4.2515]
[1738203768296,4.28359824,235.24,235.2,0.03182746]
[1738203770499,15.95970909,235.21,235.2,0.03182746]
[1738203772198,4.2528,235.15,235.09,196.2537]
[1738203772397,4.2528,235.15,235.06,13.10590909]
[1738203772598,11.70800909,235.18,235.03,11.70800909]
[1738203772798,11.70800909,235.18,235.08,4.2539]
[1738203773006,11.70800909,235.18,235.03,11.70800909]
[1738203773191,0.03142285,235.13,235.08,0.03132919]
[1738203773904,4.2533,235.12,235.08,0.03132919]
[1738203774102,0.03142285,235.13,235.08,0.03132919]
[1738203774900,4.28452285,235.13,235.08,4.28532919]
[1738203775902,4.28452285,235.13,235.09,4.2538]
[1738203775903,0.03142285,235.13,235.09,4.2538]
[1738203776403,0.03142285,235.13,235.08,0.03132919]
[1738203776604,4.2536,235.11,235.08,0.03132919]
[1738203776998,0.03142285,235.13,235.08,0.03132919]
[1738203777300,0.03142285,235.13,235.09,4.2538]
[1738203778703,0.03142285,235.13,235.08,0.03132919]
[1738203779496,4.28452285,235.13,235.08,4.28532919]
[1738203779695,0.03142285,235.13,235.08,0.03132919]
[1738203780101,4.2536,235.11,235.08,0.03132919]
[1738203780702,4.2539,235.09,235.08,0.03132919]
[1738203781404,11.75541582,235.1,235.08,0.03132919]
[1738203783402,7.50171582,235.1,235.08,0.03132919]
[1738203783707,16.05641582,235.12,235.08,0.03132919]
[1738203783907,11.80291582,235.12,235.08,0.03132919]
[1738203785108,4.2538,235.1,235.08,0.03132919]
[1738203785410,7.50171582,235.12,235.08,0.03132919]
[1738203786004,7.50171582,235.12,235.08,4.28532919]
[1738203787104,11.75501582,235.12,235.08,0.03132919]
[1738203787308,7.50171582,235.1,235.08,0.03132919]
[1738203788209,4.2539,235.09,235.08,0.03132919]
[1738203791310,7.50171582,235.1,235.01,4.2553]
[1738203791506,7.50171582,235.03,234.86,184.66352497]
[1738203791710,7.50171582,234.93,234.86,184.66352497]
[1738203791910,7.50171582,234.95,234.86,184.66352497]
[1738203792112,7.50171582,234.99,234.9,7.50171582]
[1738203792309,7.50171582,235.01,234.95,4.2564]
[1738203792504,0.02828846,234.97,234.92,7.53327708]
[1738203792907,0.02828846,234.97,234.95,4.2564]
[1738203793306,0.02828846,234.97,234.96,7.50171582]
[1738203794418,7.50171582,235.12,234.96,7.50171582]
[1738203794620,7.50171582,235.1,235.01,7.50171582]
[1738203794819,11.75551582,235.1,235.04,4.2547]
[1738203795119,7.50171582,235.12,235.03,7.50171582]
[1738203795621,0.0287858,235.1,235.05,0.03217707]
[1738203796520,11.78430162,235.1,235.05,0.03217707]
[1738203796814,7.53050162,235.1,235.05,0.03217707]
[1738203797415,7.50171582,235.08,235.05,0.03217707]
[1738203797615,11.75581582,235.08,235.05,0.03217707]
[1738203797816,0.0287858,235.1,235.05,0.03217707]
[1738203797817,7.53050162,235.1,235.05,0.03217707]
[1738203799822,7.53050162,235.1,235.07,7.50171582]
[1738203799823,0.0287858,235.1,235.07,7.50171582]
[1738203800315,0.0287858,235.1,235.08,4.254]
[1738203802021,0.0287858,235.1,235.07,7.50171582]
[1738203802222,0.0287858,235.1,235.09,4.2539]
[1738203804614,0.0287858,235.1,235.05,0.03217707]
[1738203804818,7.53050162,235.1,235.06,4.2543]
[1738203806220,7.50171582,235.08,235.05,0.03217707]
[1738203807023,7.50171582,235.08,235.05,4.28677707]
[1738203815229,11.78420162,235.1,235.06,4.2544]
[1738203818732,11.78420162,235.1,235.05,4.28677707]
[1738203819934,11.78420162,235.1,235.06,4.2544]
[1738203827532,4.2544,235.06,235.05,0.03217707]
[1738203827733,7.50171582,235.06,234.94,1.4698]
[1738203827938,7.50171582,235.0,234.94,1.4698]
[1738203828139,7.50171582,235.0,234.99,4.2555]
[1738203829340,7.53317152,235.02,234.97,0.03164866]
[1738203829542,7.53317152,235.02,235.0,4.2555]
[1738203831447,0.0314557,235.02,235.0,4.2555]
[1738203833643,11.78837152,235.02,234.98,4.2557]
[1738203834436,11.78837152,235.02,234.97,0.03164866]
[1738203835246,0.0314557,235.02,234.99,4.2555]
[1738203835451,0.0314557,235.02,234.97,0.03164866]
[1738203835452,0.0314557,235.02,234.98,7.50171582]
[1738203835646,0.0314557,235.02,235.0,7.50171582]
[1738203835846,0.0314557,235.02,235.01,4.2553]
[1738203836843,11.75511582,235.12,235.08,4.254]
[1738203837048,7.50171582,235.16,235.07,7.50171582]
[1738203837446,7.50171582,235.16,235.11,4.2534]
[1738203837946,7.53099736,235.16,235.11,4.28509462]
[1738203838445,11.78359736,235.16,235.11,4.28509462]
[1738203839841,7.50171582,235.14,235.11,0.03169462]
[1738203843851,11.75471582,235.14,235.11,0.03169462]
[1738203844150,7.50171582,235.14,235.11,0.03169462]
[1738203846046,7.50171582,235.14,235.11,4.28519462]
[1738203847551,7.53099736,235.16,235.11,0.03169462]
[1738203847850,0.02928154,235.16,235.15,4.2528]
[1738203859264,0.02928154,235.16,235.15,11.75451582]
[1738203859758,7.50171582,235.26,235.15,7.50171582]
[1738203859959,7.50171582,235.26,235.18,7.50171582]
[1738203860556,11.75251582,235.26,235.18,7.50171582]
[1738203860860,7.50171582,235.26,235.18,7.50171582]
[1738203861160,0.02990545,235.24,235.2,0.03103737]
[1738203861355,0.02990545,235.24,235.22,11.75301582]
[1738203861556,0.02990545,235.24,235.22,7.50171582]
[1738203861767,7.50171582,235.34,235.22,7.50171582]
[1738203861966,4.2101,235.35,235.27,7.50171582]
[1738203862170,7.50171582,235.34,235.29,4.2501]
[1738203862468,7.50171582,235.34,235.25,7.50171582]
[1738203862662,7.50171582,235.3,235.23,7.50171582]
[1738203862867,7.50171582,235.3,235.27,0.03030046]
[1738203864362,0.03215477,235.32,235.29,7.50171582]
[1738203864565,7.50171582,235.45,235.31,7.50171582]
[1738203864766,7.50171582,235.47,235.4,7.50171582]
[1738203864960,7.50171582,235.49,235.4,7.50171582]
[1738203865369,7.50171582,235.49,235.42,4.2478]
[1738203865665,0.02871287,235.48,235.43,0.02738613]
[1738203866064,0.02871287,235.48,235.43,4.27498613]
[1738203866863,0.02871287,235.48,235.43,0.02738613]
[1738203867665,0.02871287,235.48,235.45,4.2472]
[1738203868165,0.02871287,235.48,235.43,0.02738613]
[1738203868960,4.247,235.47,235.43,0.02738613]
[1738203869259,0.02871287,235.48,235.43,0.02738613]
[1738203869663,4.2474,235.45,235.43,0.02738613]
[1738203869869,0.02871287,235.48,235.43,0.02738613]
[1738203870567,4.2474,235.45,235.43,0.02738613]
[1738203872569,4.2474,235.45,235.43,8.613e-05]
[1738203873068,5.6954,235.45,235.43,8.613e-05]
[1738203874170,4.2483,235.4,235.3,4.2499]
[1738203874371,11.68692665,235.41,235.3,4.2499]
[1738203875174,4.2489,235.37,235.3,4.2499]
[1738203875472,4.2489,235.37,235.33,0.03111538]
[1738203878177,0.03268183,235.38,235.33,0.03111538]
[1738203880178,4.28138183,235.38,235.33,0.03111538]